[Event "FIDE WAC U2000 2021"]
[Site "Rhodes"]
[Date "2021.10.20"]
[Round "4.3"]
[White "Sielicki, Tomasz"]
[Black "Zielinski, Olgierd"]
[Result "1/2-1/2"]
[ECO "D00"]
[WhiteElo "1875"]
[BlackElo "1785"]
[Annotator "NA"]
[PlyCount "52"]
[EventDate "2021.10.17"]
[EventType "swiss"]
[EventCountry "GRE"]
[SourceTitle "playchess.com"]
[Source "ChessBase"]
[SourceQuality "1"]
[TimeControl "5400+30"]

1. d4 {[%emt 0:00:08]} Nf6 {[%emt 0:00:07]} 2. Bf4 {[%emt 0:00:17]} d5 {[%emt 0:00:18]} 3. e3 {[%emt 0:00:37]} c5 {[%emt 0:00:22]} 4. c3 {[%emt 0:00:33]} Nc6 {[%emt 0:00:13]} 5. Nd2 {[%emt 0:00:31]} Bf5 {[%emt 0:00:47]} 6. Ngf3 {[%emt 0:02:03]} cxd4 {[%emt 0:04:02]} 7. exd4 {[%emt 0:00:22]} Ne4 {[%emt 0:09:47]} 8. Nh4 {[%emt 0:11:25]} Nxd2 {[%emt 0:02:29]} 9. Qxd2 {[%emt 0:00:39]} Bd7 {[%emt 0:00:15]} 10. Bd3 {[%emt 0:02:37]} e5 {[%emt 0:27:35]} 11. Bg5 {[%emt 0:03:28]} f6 {[%emt 0:00:46]} 12. Be3 {[%emt 0:02:47]} e4 {[%emt 0:01:13]} 13. Be2 {[%emt 0:00:12]} Bd6 {[%emt 0:09:08]} 14. g4 {[%emt 0:09:07]} g6 {[%emt 0:02:59]} 15. O-O-O {[%emt 0:05:37]} Qa5 {[%emt 0:00:58]} 16. Kb1 {[%emt 0:01:02]} O-O-O {[%emt 0:00:09]} 17. f3 {[%emt 0:10:41]} f5 $14 {[%emt 0:03:35]} 18. gxf5 {[%emt 0:08:23]} gxf5 {[%emt 0:00:08]} 19. Ng2 {[%emt 0:02:42]} Rhg8 {[%emt 0:05:16]} 20. Rdg1 {[%emt 0:02:53]} Qc7 {[%emt 0:02:41]} 21. Nf4 {[%emt 0:02:34]} Ne7 {[%emt 0:00:25]} 22. c4 {[%emt 0:01:36]} Rxg1+ {[%emt 0:08:55]} 23. Rxg1 {[%emt 0:00:19]} dxc4 {[%emt 0:00:12]} 24. fxe4 {[%emt 0:04:03]} c3 {[%emt 0:01:19]} 25. Qxc3 {[%emt 0:01:46]} Qxc3 {[%emt 0:00:50]} 26. bxc3 {[%emt 0:00:06]} fxe4 {[%emt 0:00:07]} 1/2-1/2

[Event "FIDE WAC U2000 2021"]
[Site "Rhodes"]
[Date "2021.10.20"]
[Round "4.4"]
[White "Stathatos, Alexandros"]
[Black "Rudecki, Bartosz"]
[Result "1/2-1/2"]
[ECO "C63"]
[WhiteElo "1651"]
[BlackElo "1859"]
[Annotator "NA"]
[PlyCount "43"]
[EventDate "2021.10.17"]
[EventType "swiss"]
[EventCountry "GRE"]
[SourceTitle "playchess.com"]
[Source "ChessBase"]
[SourceQuality "1"]
[TimeControl "5400+30"]

1. e4 {[%emt 0:00:03]} e5 {[%emt 0:04:58]} 2. Nf3 {[%emt 0:00:06]} Nc6 {[%emt 0:00:03]} 3. Bb5 {[%emt 0:00:07]} f5 {[%emt 0:00:06]} 4. d3 {[%emt 0:00:25]} fxe4 {[%emt 0:00:08]} 5. dxe4 {[%emt 0:00:05]} Nf6 {[%emt 0:00:04]} 6. O-O {[%emt 0:06:52]} Bc5 {[%emt 0:01:23]} 7. Bxc6 {[%emt 0:01:19]} bxc6 {[%emt 0:00:14]} 8. Nxe5 {[%emt 0:03:14]} O-O {[%emt 0:01:40]} 9. Nd3 {[%emt 0:07:09]} Nxe4 {[%emt 0:01:22]} 10. Nxc5 {[%emt 0:00:47]} Nxc5 {[%emt 0:00:08]} 11. Be3 {[%emt 0:01:34]} Ne6 {[%emt 0:00:23]} 12. Nd2 {[%emt 0:02:37]} d5 {[%emt 0:01:14]} 13. Nb3 {[%emt 0:01:18]} Qd6 {[%emt 0:02:08]} 14. Qd2 {[%emt 0:04:39]} c5 {[%emt 0:08:39]} 15. f3 {[%emt 0:02:57]} d4 {[%emt 0:05:01]} 16. Bf2 {[%emt 0:00:41]} Ba6 {[%emt 0:04:36]} 17. Rfe1 $11 {[%emt 0:07:36]} Rad8 {[%emt 0:02:23]} 18. Rad1 {[%emt 0:02:10]} Rfe8 {[%emt 0:03:22]} 19. Nc1 {[%emt 0:10:36]} Qb6 {[%emt 0:08:51]} 20. c3 {[%emt 0:04:13]} dxc3 {[%emt 0:06:00]} 21. Qxc3 {[%emt 0:00:23]} Rxd1 {[%emt 0:00:48]} 22. Rxd1 {[%emt 0:00:08]} 1/2-1/2

[Event "FIDE WAC U2000 2021"]
[Site "Rhodes"]
[Date "2021.10.20"]
[Round "4.5"]
[White "Celik, Berkay"]
[Black "Tarnowska, Aleksandra"]
[Result "1-0"]
[ECO "B41"]
[WhiteElo "1846"]
[BlackElo "1841"]
[Annotator "NA"]
[PlyCount "109"]
[EventDate "2021.10.17"]
[EventType "swiss"]
[EventCountry "GRE"]
[SourceTitle "playchess.com"]
[Source "ChessBase"]
[SourceQuality "1"]
[TimeControl "5400+30"]

1. e4 {[%emt 0:00:02]} c5 {[%emt 0:02:39]} 2. Nf3 {[%emt 0:00:28]} e6 {[%emt 0:00:13]} 3. d4 {[%emt 0:00:05]} cxd4 {[%emt 0:00:06]} 4. Nxd4 {[%emt 0:00:04]} a6 {[%emt 0:00:07]} 5. c4 {[%emt 0:01:12]} Nf6 {[%emt 0:00:35]} 6. Nc3 {[%emt 0:00:06]} Bb4 {[%emt 0:02:13]} 7. Qd3 {[%emt 0:01:43]} Qc7 {[%emt 0:10:44]} 8. a3 {[%emt 0:00:48]} Bxc3+ {[%emt 0:00:50]} 9. Qxc3 {[%emt 0:00:24]} O-O {[%emt 0:33:47]} 10. Bd3 {[%emt 0:00:14]} d5 {[%emt 0:10:16]} 11. exd5 {[%emt 0:00:28]} exd5 {[%emt 0:03:44]} 12. O-O {[%emt 0:00:03]} dxc4 {[%emt 0:01:20]} 13. Qxc4 {[%emt 0:00:24]} Qxc4 {[%emt 0:02:44]} 14. Bxc4 {[%emt 0:00:02]} Bd7 {[%emt 0:09:50]} 15. Bg5 {[%emt 0:02:49]} Nc6 {[%emt 0:05:29]} 16. Rad1 {[%emt 0:00:21]} Ne4 {[%emt 0:04:01]} 17. Bf4 {[%emt 0:00:10]} Nxd4 {[%emt 0:00:47]} 18. Rxd4 {[%emt 0:00:41]} Bc6 {[%emt 0:00:26]} 19. Rfd1 {[%emt 0:00:05]} Rfe8 {[%emt 0:02:26]} 20. Bc7 {[%emt 0:07:17]} Rac8 {[%emt 0:02:27]} 21. Ba5 {[%emt 0:05:16]} h6 {[%emt 0:02:16]} 22. f3 {[%emt 0:00:54]} Ng5 {[%emt 0:01:46]} 23. Rg4 {[%emt 0:01:41]} Nxf3+ {[%emt 0:02:09]} 24. gxf3 {[%emt 0:00:39]} Bxf3 {[%emt 0:00:02]} 25. Rdd4 {[%emt 0:00:01]} Bxg4 {[%emt 0:00:39]} 26. Rxg4 {[%emt 0:00:01]} Re5 {[%emt 0:01:20]} 27. Bd2 {[%emt 0:00:02]} b5 {[%emt 0:00:31]} 28. Bb3 {[%emt 0:00:03]} Re2 {[%emt 0:00:31]} 29. Bc3 {[%emt 0:00:35]} g5 {[%emt 0:00:28]} 30. h4 {[%emt 0:00:20]} Rc5 {[%emt 0:00:24]} 31. Kf1 {[%emt 0:01:44]} Rh2 {[%emt 0:00:31]} 32. Rd4 {[%emt 0:00:40]} Rxh4 {[%emt 0:00:37]} 33. Rd8+ {[%emt 0:00:01]} Kh7 {[%emt 0:00:03]} 34. Bc2+ {[%emt 0:01:08]} f5 {[%emt 0:00:09]} 35. Rd6 {[%emt 0:00:26]} Rf4+ {[%emt 0:01:05]} 36. Kg1 {[%emt 0:00:08]} Rg4+ {[%emt 0:00:18]} 37. Kf1 {[%emt 0:00:01]} Rf4+ {[%emt 0:00:38]} 38. Kg1 {[%emt 0:00:01]} Rg4+ {[%emt 0:00:41]} 39. Kf1 {[%emt 0:00:07]} Rf4+ {[%emt 0:00:32]} 40. Ke2 {[%emt 0:01:19]} Rh4 {[%emt 0:00:33]} 41. Bb3 {[%emt 0:01:36]} Rh2+ {[%emt 0:00:21]} 42. Kf3 {[%emt 0:00:21]} Rh3+ {[%emt 0:00:37]} 43. Ke2 {[%emt 0:00:27]} Rh2+ {[%emt 0:00:33]} 44. Kd3 {[%emt 0:00:11]} Rh3+ {[%emt 0:00:30]} 45. Kd4 {[%emt 0:00:32]} Rc7 {[%emt 0:00:30]} 46. Bc2 {[%emt 0:00:04]} Rf3 {[%emt 0:00:29]} 47. Ke5 {[%emt 0:00:39]} Rfxc3 {[%emt 0:00:32]} 48. Bxf5+ {[%emt 0:00:08]} Kg7 {[%emt 0:00:23]} 49. bxc3 {[%emt 0:00:03]} Rc5+ {[%emt 0:00:33]} 50. Ke6 {[%emt 0:00:08]} Rxc3 {[%emt 0:00:17]} 51. Rd7+ {[%emt 0:11:49]} Kf8 {[%emt 0:00:42]} 52. Kf6 {[%emt 0:01:10]} Ke8 {[%emt 0:00:26]} 53. Rd6 {[%emt 0:00:03]} Rf3 {[%emt 0:00:29]} 54. Rxa6 {[%emt 0:00:46]} Kd8 {[%emt 0:00:27]} 55. Rc6 {[%emt 0:00:04]} 1-0

[Event "FIDE WAC U2000 2021"]
[Site "Rhodes"]
[Date "2021.10.21"]
[Round "5.1"]
[White "Peter Anand, A."]
[Black "Celik, Berkay"]
[Result "1-0"]
[ECO "A48"]
[WhiteElo "1787"]
[BlackElo "1846"]
[Annotator "NA"]
[PlyCount "133"]
[EventDate "2021.10.17"]
[EventType "swiss"]
[EventCountry "GRE"]
[SourceTitle "playchess.com"]
[Source "ChessBase"]
[SourceQuality "1"]
[TimeControl "5400+30"]

1. d4 {[%emt 0:00:03]} Nf6 {[%emt 0:03:07]} 2. Nf3 {[%emt 0:00:17]} g6 {[%emt 0:02:22]} 3. c3 {[%emt 0:01:26]} Bg7 {[%emt 0:00:08]} 4. Bg5 {[%emt 0:02:19]} O-O {[%emt 0:00:10]} 5. e3 {[%emt 0:00:31]} d6 {[%emt 0:00:11]} 6. Bc4 {[%emt 0:01:38]} Nc6 {[%emt 0:00:10]} 7. O-O {[%emt 0:01:45]} h6 {[%emt 0:00:10]} 8. Bxf6 {[%emt 0:00:09]} Bxf6 {[%emt 0:00:02]} 9. Nbd2 {[%emt 0:00:33]} e5 {[%emt 0:00:08]} 10. Qc2 {[%emt 0:06:16]} Kh8 {[%emt 0:09:22]} 11. Rfd1 {[%emt 0:04:15]} Qe8 {[%emt 0:03:07]} 12. dxe5 {[%emt 0:02:11]} dxe5 {[%emt 0:00:50]} 13. Nf1 {[%emt 0:02:08]} Bg7 {[%emt 0:05:07]} 14. e4 {[%emt 0:03:54]} f5 {[%emt 0:00:40]} 15. Ne3 {[%emt 0:01:36]} Ne7 {[%emt 0:04:41]} 16. Rd2 {[%emt 0:07:55]} b5 {[%emt 0:08:12]} 17. Bb3 {[%emt 0:12:21]} Bb7 $11 {[%emt 0:01:09]} 18. Nd5 {[%emt 0:00:45]} Nxd5 {[%emt 0:03:44]} (18... fxe4 $11 {remains equal.} 19. Qxe4 a5) 19. Bxd5 {[%emt 0:00:53]} c6 {[%emt 0:03:34]} 20. Bb3 {[%emt 0:00:55]} f4 {[%emt 0:07:26]} 21. Rad1 {[%emt 0:01:04]} Bc8 {[%emt 0:00:45]} 22. Rd6 {[%emt 0:06:50]} g5 {[%emt 0:00:32]} 23. h3 {[%emt 0:05:58]} Bf6 {[%emt 0:10:11]} 24. c4 {[%emt 0:06:19]} Be7 {[%emt 0:02:47]} 25. R6d3 {[%emt 0:07:58]} g4 {[%emt 0:05:28]} 26. Nxe5 {[%emt 0:06:49]} gxh3 {[%emt 0:00:37]} 27. Nd7 {[%emt 0:00:38]} Bxd7 {[%emt 0:00:51]} 28. Rxd7 {[%emt 0:00:08]} hxg2 {[%emt 0:03:08]} 29. Qc3+ {[%emt 0:01:07]} Rf6 {[%emt 0:00:46]} 30. Qh3 {[%emt 0:00:58]} Bc5 {[%emt 0:05:59]} 31. cxb5 {[%emt 0:08:50]} Qxe4 {[%emt 0:00:32]} 32. Qc3 {[%emt 0:01:23]} Qf5 {[%emt 0:05:39]} 33. Bc2 {[%emt 0:00:17]} Qg5 {[%emt 0:01:28]} 34. Qd3 {[%emt 0:00:36]} Bxf2+ {[%emt 0:01:24]} 35. Kxf2 {[%emt 0:00:02]} Qh4+ {[%emt 0:00:01]} 36. Ke2 {[%emt 0:02:08]} Re8+ {[%emt 0:03:53]} 37. Kd2 {[%emt 0:00:01]} Qf2+ {[%emt 0:00:06]} 38. Kc1 {[%emt 0:02:54]} Qe3+ {[%emt 0:00:01]} 39. Kb1 {[%emt 0:02:14]} Qxd3 {[%emt 0:00:06]} 40. R7xd3 {[%emt 0:01:01]} f3 {[%emt 0:00:09]} 41. bxc6 {[%emt 0:00:38]} f2 {[%emt 0:00:13]} 42. c7 {[%emt 0:00:02]} Rc6 {[%emt 0:01:43]} 43. Rd8 {[%emt 0:00:20]} Rxc7 {[%emt 0:00:14]} 44. Rxe8+ {[%emt 0:00:02]} Kg7 {[%emt 0:00:01]} 45. Ree1 {[%emt 0:01:15]} Rf7 {[%emt 0:00:37]} 46. Rf1 {[%emt 0:00:14]} h5 {[%emt 0:00:25]} 47. Be4 {[%emt 0:00:05]} gxf1=Q 48. Rxf1 {[%emt 0:00:01]} Kh6 {[%emt 0:00:39]} 49. Kc2 {[%emt 0:01:55]} Kg5 {[%emt 0:00:04]} 50. Kd2 {[%emt 0:00:56]} Kg4 {[%emt 0:00:28]} 51. Ke2 {[%emt 0:00:19]} Kg3 {[%emt 0:00:18]} 52. Rc1 {[%emt 0:00:45]} Re7 {[%emt 0:02:08]} 53. Rc3+ {[%emt 0:00:31]} Kf4 {[%emt 0:01:47]} 54. Rf3+ {[%emt 0:00:36]} Kg4 {[%emt 0:00:08]} 55. Ke3 {[%emt 0:00:35]} h4 {[%emt 0:00:22]} 56. Rxf2 {[%emt 0:00:15]} h3 {[%emt 0:00:01]} 57. Rf8 {[%emt 0:00:13]} h2 {[%emt 0:00:36]} 58. Rh8 {[%emt 0:00:10]} Kg3 {[%emt 0:00:26]} 59. b4 {[%emt 0:00:17]} Re5 {[%emt 0:00:21]} 60. a4 {[%emt 0:00:10]} Re7 {[%emt 0:00:20]} 61. b5 {[%emt 0:00:26]} Rc7 {[%emt 0:00:14]} 62. a5 {[%emt 0:00:21]} Rc3+ {[%emt 0:00:05]} 63. Kd4 {[%emt 0:00:06]} Rb3 {[%emt 0:00:17]} 64. Kc5 {[%emt 0:00:36]} Re3 {[%emt 0:00:04]} 65. Bd5 {[%emt 0:00:14]} Rc3+ {[%emt 0:00:10]} 66. Kd4 {[%emt 0:00:18]} Ra3 {[%emt 0:00:20]} 67. b6 {[%emt 0:00:11]} 1-0

[Event "FIDE WAC U2000 2021"]
[Site "Rhodes"]
[Date "2021.10.21"]
[Round "5.2"]
[White "Mohamed Saeed Laily"]
[Black "Degrande, Marigje"]
[Result "0-1"]
[ECO "B13"]
[WhiteElo "1996"]
[BlackElo "1889"]
[Annotator "ChessBase"]
[PlyCount "77"]
[EventDate "2021.10.17"]
[EventType "swiss"]
[EventCountry "GRE"]
[SourceTitle "playchess.com"]
[Source "ChessBase"]
[SourceQuality "1"]
[TimeControl "5400+30"]

1. d4 {[%emt 0:00:02]} Nf6 {[%emt 0:00:04]} 2. Nc3 {[%emt 0:00:03]} d5 {[%emt 0:00:06]} 3. Bf4 {[%emt 0:00:05]} c5 {[%emt 0:00:07]} 4. e3 {[%emt 0:00:08]} cxd4 {[%emt 0:00:07]} 5. exd4 {[%emt 0:00:35]} a6 {[%emt 0:00:06]} 6. Nf3 {[%emt 0:03:42]} Nc6 {[%emt 0:01:07]} 7. h3 {[%emt 0:01:34]} Bf5 {[%emt 0:01:37]} 8. Bd3 {[%emt 0:02:56]} Bxd3 {[%emt 0:01:27]} 9. Qxd3 {[%emt 0:00:02]} e6 {[%emt 0:00:10]} 10. O-O {[%emt 0:00:43]} Be7 {[%emt 0:00:44]} 11. Ne2 {[%emt 0:01:32]} O-O {[%emt 0:03:14]} 12. c3 {[%emt 0:00:55]} b5 {[%emt 0:05:43]} 13. b4 {[%emt 0:08:58]} Qb6 {[%emt 0:15:28]} 14. a4 {[%emt 0:03:40]} bxa4 {[%emt 0:04:49]} 15. Rxa4 {[%emt 0:04:13]} Qb5 {[%emt 0:00:27]} 16. Qc2 {[%emt 0:01:08]} Rfc8 {[%emt 0:01:33]} 17. Qa2 {[%emt 0:01:49]} Ra7 {[%emt 0:05:14]} 18. Ra1 {[%emt 0:01:23]} Rca8 {[%emt 0:00:24]} 19. Ne5 {[%emt 0:01:41]} Ne4 {[%emt 0:04:54]} 20. f3 {[%emt 0:02:26]} Nd6 {[%emt 0:01:32]} 21. Nxc6 {[%emt 0:00:24]} Qxc6 {[%emt 0:00:07]} 22. Bxd6 {[%emt 0:00:04]} Bxd6 {[%emt 0:00:51]} 23. Ra5 {[%emt 0:07:00]} Bb8 {[%emt 0:09:36]} 24. Qa4 {[%emt 0:21:17]} Qxa4 {[%emt 0:02:06]} 25. R5xa4 {[%emt 0:00:07]} Kf8 {[%emt 0:02:30]} 26. Nc1 {[%emt 0:01:15]} Ke7 {[%emt 0:03:49]} 27. Nd3 {[%emt 0:11:50]} Kd6 {[%emt 0:01:43]} 28. Nc5 {[%emt 0:01:52]} Kc6 {[%emt 0:01:11]} 29. Nxa6 {[%emt 0:02:36]} Bd6 {[%emt 0:04:07]} 30. b5+ {[%emt 0:11:14]} Kb6 {[%emt 0:05:04]} 31. Rb1 {[%emt 0:00:35]} Rc8 {[%emt 0:01:13]} 32. Rb3 {[%emt 0:00:38]} f6 {[%emt 0:01:56]} 33. Kf2 {[%emt 0:00:26]} e5 {[%emt 0:01:10]} 34. Ke3 {[%emt 0:01:30]} Re8 {[%emt 0:05:33]} 35. c4 {[%emt 0:04:14]} exd4+ {[%emt 0:02:26]} 36. Kxd4 {[%emt 0:00:07]} Be5+ {[%emt 0:02:30]} 37. Kd3 {[%emt 0:00:41]} dxc4+ {[%emt 0:04:13]} 38. Kc2 {[%emt 0:02:52]} Bg3 {[%emt 0:00:22]} 39. Kb2 {[%emt 0:03:00]} 0-1

[Event "FIDE WAC U2000 2021"]
[Site "Rhodes"]
[Date "2021.10.21"]
[Round "5.3"]
[White "Mandukhai, Myagmarsuren"]
[Black "Dogu, Hasim"]
[Result "0-1"]
[ECO "A84"]
[WhiteElo "1966"]
[BlackElo "1852"]
[Annotator "NA"]
[PlyCount "84"]
[EventDate "2021.10.17"]
[EventType "swiss"]
[EventCountry "GRE"]
[SourceTitle "playchess.com"]
[Source "ChessBase"]
[SourceQuality "1"]
[TimeControl "5400+30"]

1. d4 {[%emt 0:00:05]} e6 {[%emt 0:01:11]} 2. c4 {[%emt 0:00:20]} b6 {[%emt 0:00:05]} 3. a3 {[%emt 0:00:04]} Bb7 {[%emt 0:00:28]} 4. Nc3 {[%emt 0:00:09]} f5 {[%emt 0:02:45]} 5. d5 {[%emt 0:00:06]} Nf6 {[%emt 0:02:37]} 6. g3 {[%emt 0:00:20]} Be7 {[%emt 0:02:13]} 7. Bg2 {[%emt 0:01:12]} O-O {[%emt 0:08:40]} 8. Nf3 {[%emt 0:00:58]} a5 {[%emt 0:12:17]} 9. O-O {[%emt 0:04:23]} Qc8 {[%emt 0:13:26]} 10. Nd4 {[%emt 0:13:25]} Na6 {[%emt 0:06:01]} 11. dxe6 {[%emt 0:23:46]} Bxg2 {[%emt 0:00:54]} 12. Nxf5 {[%emt 0:08:14]} Qb7 {[%emt 0:00:22]} 13. Nxe7+ {[%emt 0:06:05]} Kh8 $16 {[%emt 0:00:08]} 14. Re1 {[%emt 0:00:56]} dxe6 {[%emt 0:00:13]} 15. f3 {[%emt 0:20:17]} Rad8 {[%emt 0:13:29]} 16. Qa4 {[%emt 0:02:39]} Bh3 {[%emt 0:07:36]} 17. Nc6 {[%emt 0:02:10]} Rd6 {[%emt 0:00:48]} 18. Ne5 {[%emt 0:00:33]} Nc5 {[%emt 0:03:34]} 19. Qc2 {[%emt 0:00:53]} Bf5 {[%emt 0:11:23]} 20. e4 {[%emt 0:00:52]} Bh3 {[%emt 0:00:28]} 21. Be3 {[%emt 0:02:19]} Nfd7 {[%emt 0:01:16]} 22. Nxd7 {[%emt 0:01:41]} Nxd7 {[%emt 0:03:04]} 23. Nb5 {[%emt 0:03:52]} Ne5 {[%emt 0:01:08]} 24. Nxd6 {[%emt 0:03:21]} Nxf3+ {[%emt 0:00:04]} 25. Kh1 {[%emt 0:00:14]} Nxe1 {[%emt 0:00:05]} 26. Rxe1 {[%emt 0:00:15]} cxd6 {[%emt 0:00:06]} 27. Kg1 {[%emt 0:00:33]} Qc6 {[%emt 0:02:26]} 28. Rd1 {[%emt 0:01:27]} d5 {[%emt 0:00:58]} 29. c5 {[%emt 0:01:36]} Qb5 {[%emt 0:01:06]} 30. Bf2 {[%emt 0:00:23]} Qc6 {[%emt 0:02:14]} 31. exd5 {[%emt 0:01:32]} exd5 {[%emt 0:00:11]} 32. Qd2 {[%emt 0:00:20]} d4 {[%emt 0:01:42]} 33. Bxd4 {[%emt 0:00:04]} bxc5 {[%emt 0:00:13]} 34. Be5 {[%emt 0:01:37]} Qf3 {[%emt 0:01:11]} 35. Bf4 {[%emt 0:00:28]} h6 {[%emt 0:02:09]} 36. b4 {[%emt 0:00:44]} cxb4 {[%emt 0:00:25]} 37. axb4 {[%emt 0:00:07]} axb4 {[%emt 0:00:08]} 38. Rb1 {[%emt 0:00:19]} b3 {[%emt 0:00:45]} 39. Qb2 {[%emt 0:00:17]} Kh7 {[%emt 0:00:45]} 40. Re1 {[%emt 0:00:17]} Re8 {[%emt 0:00:51]} 41. Ra1 {[%emt 0:00:15]} Re2 {[%emt 0:00:20]} 42. Qb1+ {[%emt 0:00:50]} Rc2 {[%emt 0:00:09]} 0-1

[Event "FIDE WAC U2000 2021"]
[Site "Rhodes"]
[Date "2021.10.21"]
[Round "5.4"]
[White "Baisynov, Islam"]
[Black "Tenuunbold, Battulga"]
[Result "0-1"]
[ECO "B33"]
[WhiteElo "1955"]
[BlackElo "1753"]
[Annotator "ChessBase"]
[PlyCount "120"]
[EventDate "2021.10.17"]
[EventType "swiss"]
[EventCountry "GRE"]
[SourceTitle "playchess.com"]
[Source "ChessBase"]
[SourceQuality "1"]
[TimeControl "5400+30"]

1. e4 {[%emt 0:00:01]} c5 {[%emt 0:00:05]} 2. Nf3 {[%emt 0:00:05]} Nc6 {[%emt 0:00:03]} 3. d4 {[%emt 0:00:16]} cxd4 {[%emt 0:00:05]} 4. Nxd4 {[%emt 0:00:06]} Nf6 {[%emt 0:00:04]} 5. Nc3 {[%emt 0:00:04]} e5 {[%emt 0:00:09]} 6. Ndb5 {[%emt 0:00:20]} d6 {[%emt 0:00:07]} 7. Bg5 {[%emt 0:00:09]} a6 {[%emt 0:00:09]} 8. Bxf6 {[%emt 0:01:34]} gxf6 {[%emt 0:00:05]} 9. Na3 {[%emt 0:00:02]} b5 {[%emt 0:00:09]} 10. Nd5 {[%emt 0:00:26]} f5 {[%emt 0:00:33]} 11. Bd3 {[%emt 0:07:27]} Be6 {[%emt 0:00:13]} 12. Ne3 {[%emt 0:01:31]} f4 {[%emt 0:04:06]} 13. Nd5 {[%emt 0:01:26]} Bg7 {[%emt 0:01:27]} 14. c3 {[%emt 0:04:51]} O-O {[%emt 0:03:02]} 15. Qh5 {[%emt 0:02:48]} h6 {[%emt 0:05:25]} 16. g3 {[%emt 0:04:53]} Qg5 {[%emt 0:26:13]} 17. Qxg5 {[%emt 0:00:43]} hxg5 {[%emt 0:00:49]} 18. Nc7 {[%emt 0:00:28]} Ra7 {[%emt 0:00:36]} 19. Nxe6 {[%emt 0:00:13]} fxe6 {[%emt 0:00:05]} 20. Nc2 {[%emt 0:03:52]} Rb8 {[%emt 0:07:35]} 21. Rd1 {[%emt 0:04:27]} Kf7 {[%emt 0:05:01]} 22. b3 {[%emt 0:04:40]} Rc7 {[%emt 0:06:42]} 23. c4 {[%emt 0:03:00]} Ke7 {[%emt 0:05:18]} 24. Ke2 {[%emt 0:01:36]} b4 {[%emt 0:13:35]} 25. h4 {[%emt 0:04:00]} g4 {[%emt 0:02:13]} 26. f3 {[%emt 0:00:43]} gxf3+ {[%emt 0:03:05]} 27. Kxf3 {[%emt 0:00:09]} fxg3 {[%emt 0:00:03]} 28. Kxg3 {[%emt 0:00:35]} Bh6 {[%emt 0:04:40]} 29. Be2 {[%emt 0:05:06]} Rg8+ {[%emt 0:00:45]} 30. Kh3 {[%emt 0:00:37]} Rcc8 {[%emt 0:01:17]} 31. Bg4 {[%emt 0:03:10]} Rcf8 {[%emt 0:00:52]} 32. Rhf1 {[%emt 0:00:15]} Bf4 {[%emt 0:03:49]} 33. Rf3 {[%emt 0:00:52]} Rf7 {[%emt 0:00:32]} 34. Rf2 {[%emt 0:03:29]} Rfg7 {[%emt 0:00:56]} 35. Rg2 {[%emt 0:00:11]} a5 {[%emt 0:01:27]} 36. Rf1 {[%emt 0:02:13]} Bh6 {[%emt 0:03:23]} 37. Ne1 {[%emt 0:03:24]} Nb8 {[%emt 0:00:35]} 38. Nd3 {[%emt 0:00:28]} Nd7 {[%emt 0:00:03]} 39. Bf3 {[%emt 0:01:45]} Nf8 {[%emt 0:02:20]} 40. c5 {[%emt 0:00:49]} dxc5 {[%emt 0:00:47]} 41. Rxg7+ {[%emt 0:02:53]} Rxg7 {[%emt 0:00:06]} 42. Nxe5 {[%emt 0:07:17]} Bf4 {[%emt 0:00:28]} 43. Nc6+ {[%emt 0:00:13]} Kd7 {[%emt 0:00:48]} 44. Bg4 {[%emt 0:00:11]} Ng6 {[%emt 0:01:28]} 45. Bh5 {[%emt 0:13:48]} Bc7 {[%emt 0:00:53]} 46. Bxg6 {[%emt 0:06:02]} Rxg6 {[%emt 0:00:10]} 47. h5 {[%emt 0:00:12]} Rh6 {[%emt 0:00:22]} 48. Na7 {[%emt 0:00:32]} Rxh5+ {[%emt 0:00:14]} 49. Kg4 {[%emt 0:00:07]} Rh2 {[%emt 0:00:30]} 50. Rf7+ {[%emt 0:00:18]} Kd8 {[%emt 0:00:12]} 51. Nc6+ {[%emt 0:04:51]} Kc8 {[%emt 0:00:03]} 52. Re7 {[%emt 0:00:12]} Rxa2 {[%emt 0:00:45]} 53. Rxe6 {[%emt 0:00:05]} a4 {[%emt 0:00:19]} 54. Rh6 {[%emt 0:06:17]} axb3 {[%emt 0:00:06]} 55. Rh1 {[%emt 0:00:05]} Kd7 {[%emt 0:00:25]} 56. Nxb4 {[%emt 0:00:31]} cxb4 {[%emt 0:00:04]} 57. Rb1 {[%emt 0:00:53]} b2 {[%emt 0:00:11]} 58. Kf5 {[%emt 0:00:09]} Ra5+ {[%emt 0:00:08]} 59. e5 {[%emt 0:00:13]} Bxe5 {[%emt 0:00:12]} 60. Ke4 {[%emt 0:00:05]} Ra1 {[%emt 0:00:09]} 0-1

[Event "FIDE WAC U2000 2021"]
[Site "Rhodes"]
[Date "2021.10.21"]
[Round "5.5"]
[White "Sultanbek, Zeinep"]
[Black "Stathatos, Alexandros"]
[Result "1-0"]
[ECO "E11"]
[WhiteElo "1883"]
[BlackElo "1651"]
[Annotator "NA"]
[PlyCount "97"]
[EventDate "2021.10.17"]
[EventType "swiss"]
[EventCountry "GRE"]
[SourceTitle "playchess.com"]
[Source "ChessBase"]
[SourceQuality "1"]
[TimeControl "5400+30"]

1. d4 {[%emt 0:01:58]} Nf6 {[%emt 0:00:11]} 2. c4 {[%emt 0:00:10]} e6 {[%emt 0:00:05]} 3. g3 {[%emt 0:00:10]} Bb4+ {[%emt 0:00:59]} 4. Bd2 {[%emt 0:00:09]} Qe7 {[%emt 0:00:39]} 5. Bg2 {[%emt 0:00:21]} Bxd2+ {[%emt 0:00:38]} 6. Qxd2 {[%emt 0:00:06]} d6 {[%emt 0:00:19]} 7. Nc3 {[%emt 0:05:08]} e5 {[%emt 0:01:01]} 8. Nf3 {[%emt 0:09:50]} O-O {[%emt 0:01:00]} 9. O-O {[%emt 0:00:23]} a5 {[%emt 0:02:33]} 10. h3 {[%emt 0:10:18]} Na6 {[%emt 0:02:28]} 11. e4 {[%emt 0:02:25]} c6 {[%emt 0:09:20]} 12. Rad1 {[%emt 0:03:27]} Bd7 {[%emt 0:02:17]} (12... Re8 $14) 13. c5 {[%emt 0:05:30]} exd4 {[%emt 0:11:28]} (13... d5 $16 {keeps fighting.}) 14. cxd6 {[%emt 0:00:16]} ({And not} 14. Qxd4 dxc5 15. Qd6 Qxd6 $11) 14... dxc3 {[%emt 0:00:52]} 15. dxe7 {[%emt 0:00:10]} cxd2 {[%emt 0:00:06]} 16. exf8=Q+ {[%emt 0:00:10]} Kxf8 {[%emt 0:00:24]} 17. Rxd2 {[%emt 0:00:51]} Be6 {[%emt 0:00:28]} 18. e5 {[%emt 0:01:12]} Ne4 {[%emt 0:00:51]} 19. Rd4 {[%emt 0:00:49]} Nec5 {[%emt 0:00:48]} 20. a3 {[%emt 0:01:47]} h6 {[%emt 0:02:19]} 21. Nd2 {[%emt 0:00:59]} a4 {[%emt 0:02:46]} (21... Nc7 $142 22. Nb1 Nb5) 22. f4 {[%emt 0:02:54]} Nc7 {[%emt 0:05:48]} 23. f5 {[%emt 0:03:44]} Bd5 {[%emt 0:01:17]} 24. Bxd5 {[%emt 0:01:46]} Nxd5 {[%emt 0:00:14]} 25. Rc1 {[%emt 0:04:50]} b6 {[%emt 0:02:16]} 26. g4 {[%emt 0:01:46]} Re8 {[%emt 0:01:32]} 27. Re1 {[%emt 0:00:10]} g5 {[%emt 0:01:08]} 28. Nc4 $18 {[%emt 0:05:15]} f6 {[%emt 0:03:00]} 29. e6 {[%emt 0:00:42]} Ke7 {[%emt 0:02:05]} 30. Rxd5 {[%emt 0:02:16]} cxd5 {[%emt 0:00:37]} 31. Nxb6 {[%emt 0:00:04]} Rd8 {[%emt 0:01:03]} 32. Rc1 {[%emt 0:00:11]} Nd3 {[%emt 0:00:46]} 33. Rc7+ {[%emt 0:00:10]} Kd6 {[%emt 0:00:27]} 34. Rc8 {[%emt 0:02:31]} Rxc8 {[%emt 0:00:42]} 35. Nxc8+ {[%emt 0:00:06]} Kc7 {[%emt 0:00:07]} 36. Nb6 {[%emt 0:00:14]} Kd6 {[%emt 0:02:07]} 37. Nxd5 {[%emt 0:00:30]} Nxb2 {[%emt 0:00:17]} 38. Nxf6 {[%emt 0:00:05]} Nc4 {[%emt 0:00:35]} 39. Ne4+ {[%emt 0:00:30]} Ke7 {[%emt 0:00:58]} 40. Nc3 {[%emt 0:00:05]} Nxa3 {[%emt 0:00:16]} 41. Nxa4 {[%emt 0:00:02]} Nc4 {[%emt 0:00:42]} 42. Nc3 {[%emt 0:00:09]} Ne5 {[%emt 0:02:12]} 43. Kf2 {[%emt 0:00:20]} Kd6 {[%emt 0:01:37]} 44. Ke3 {[%emt 0:00:17]} Nc4+ {[%emt 0:00:42]} 45. Kd4 {[%emt 0:00:06]} Nb6 {[%emt 0:00:22]} 46. Ne4+ {[%emt 0:00:52]} Ke7 {[%emt 0:00:10]} 47. Kc5 {[%emt 0:00:24]} Na4+ {[%emt 0:00:42]} 48. Kc6 {[%emt 0:00:05]} Nb2 {[%emt 0:00:17]} 49. Kd5 {[%emt 0:00:05]} 1-0